fUST/lending_fUST_20251024
["ID","MTS","AMOUNT","RATE_DAILY","PERIOD"]
[392180685,1761240787663,196.0,0.0001705,2]
[392180686,1761240787955,196.0,0.00017313,2]
[392180687,1761240788241,196.0,0.00017575,2]
[392180688,1761240788707,196.0,0.00017838,2]
[392180689,1761240791059,-241.56883882,0.000181,2]
[392180692,1761240795738,-113.5985872,0.000181,2]
[392180699,1761240825118,466.0,0.0002027,2]
[392180704,1761240846810,179.34,0.00019256,2]
[392180705,1761240846883,1861.65887224,0.00021968,2]
[392180706,1761240847203,358.69,0.00020173,2]
[392180707,1761240847628,538.03,0.0002109,2]
[392180710,1761240851036,150.0,0.00015,30]
[392180711,1761240851440,153.72,0.00015714,30]
[392180712,1761240851843,230.59,0.00016429,30]
[392180713,1761240852353,307.45,0.00017143,30]
[392180716,1761240852803,384.31,0.00017857,30]
[392180717,1761240853265,461.17,0.00018571,30]
[392180718,1761240853677,538.03,0.00019286,30]
[392180719,1761240853846,4371.02112776,0.00021825,2]
[392180720,1761240853867,10000.01,0.00021825,2]
[392180721,1761240853889,10000.01,0.00021825,2]
[392180722,1761240853916,10000.01,0.00021825,2]
[392180723,1761240854132,614.89,0.0002,30]
[392180724,1761240854538,691.76,0.00020714,30]
[392180726,1761240857069,-695.48850385,0.00021429,30]
[392180727,1761240865911,5000.0,0.00021429,2]
[392180728,1761240874241,5000.0,0.00021429,2]
[392180729,1761240882289,1145.36792024,0.00021429,2]
[392180730,1761240890433,5000.0,0.00021429,2]
[392180731,1761240906456,196.0,0.00016,2]
[392180732,1761240906762,196.0,0.00016263,2]
[392180733,1761240907035,196.0,0.00016525,2]
[392180734,1761240907323,196.0,0.00016788,2]
[392180735,1761240907878,196.0,0.0001705,2]
[392180736,1761240908191,196.0,0.00017313,2]
[392180737,1761240908477,196.0,0.00017575,2]
[392180738,1761240908773,196.0,0.00017838,2]
[392180739,1761240909082,203.9583713,0.000181,2]
[392180741,1761240922084,230.72,0.00019222,2]
[392180742,1761240922488,461.44,0.00020138,2]
[392180743,1761240922882,692.16,0.00021053,2]
[392180744,1761240926305,150.0,0.00012905,30]
[392180745,1761240926779,197.76,0.0001352,30]
[392180746,1761240927263,296.64,0.00014134,30]
[392180747,1761240927636,395.52,0.00014749,30]
[392180748,1761240928034,494.4,0.00015363,30]
[392180749,1761240928447,593.28,0.00015978,30]
[392180750,1761240928870,692.16,0.00016592,30]
[392180751,1761240929279,791.04,0.00017207,30]
[392180752,1761240929690,889.92,0.00017821,30]
[392180753,1761240930090,937.7064154,0.00018436,30]
[392180758,1761240956037,605.7577272,0.00021097,6]
[392180769,1761240997753,185.46,0.00019258,2]
[392180770,1761240998163,370.92,0.00020175,2]
[392180771,1761240998562,556.37,0.00021092,2]
[392180772,1761241001952,150.0,0.00012553,30]
[392180773,1761241002377,158.96,0.00013151,30]
[392180774,1761241002780,238.45,0.00013748,30]
[392180775,1761241003198,317.93,0.00014346,30]
[392180776,1761241003595,397.41,0.00014944,30]
[392180777,1761241003988,476.89,0.00015542,30]
[392180778,1761241004418,556.37,0.00016139,30]
[392180779,1761241004818,635.86,0.00016737,30]
[392180780,1761241005243,715.34,0.00017335,30]
[392180781,1761241005641,724.3,0.00017933,30]
[392180782,1761241007780,3909.9922728,0.0002027,2]
[392180783,1761241007805,175.09529586,0.0002027,2]
[392180784,1761241072896,150.0,0.00019304,2]
[392180785,1761241073306,250.78,0.00020223,2]
[392180786,1761241073732,376.17,0.00021142,2]
[392180787,1761241077184,150.0,0.00012777,30]
[392180788,1761241077580,150.0,0.00013385,30]
[392180789,1761241078003,161.22,0.00013994,30]
[392180790,1761241078954,214.95,0.00014602,30]
[392180791,1761241079413,268.69,0.00015211,30]
[392180792,1761241079812,322.43,0.00015819,30]
[392180793,1761241080419,376.17,0.00016428,30]
[392180794,1761241080630,429.91,0.00017036,30]
[392180795,1761241081044,483.65,0.00017644,30]
[392180796,1761241081275,261.27,0.00015984,2]
[392180797,1761241081449,374.0,0.00018253,30]
[392180798,1761241081608,261.27,0.00015984,2]
[392180799,1761241081910,261.27,0.00015984,2]
[392180800,1761241091276,250.0,0.00021049,2]
[392180801,1761241106853,5000.0,0.00021203,2]
[392180802,1761241115750,83.13470414,0.00021203,2]
[392180803,1761241115776,4916.86529586,0.00021203,2]
[392180804,1761241124810,1291.80034382,0.00021203,2]
[392180805,1761241132667,3791.34436032,0.00021203,2]
[392180806,1761241132691,1208.65563968,0.00021203,2]
[392180807,1761241141308,5000.0,0.00021203,2]
[392180808,1761241148621,150.0,0.00019294,2]
[392180809,1761241149032,266.4,0.00020213,2]
[392180810,1761241149583,399.6,0.00021131,2]
[392180811,1761241152651,150.0,0.00012837,30]
[392180812,1761241153057,150.0,0.00013448,30]
[392180813,1761241153702,171.26,0.0001406,30]
[392180814,1761241154113,228.34,0.00014671,30]
[392180815,1761241154504,285.43,0.00015282,30]
[392180816,1761241154919,342.52,0.00015893,30]
[392180817,1761241155327,399.6,0.00016505,30]
[392180818,1761241155743,456.69,0.00017116,30]
[392180819,1761241156162,513.78,0.00017727,30]
[392180820,1761241156554,425.33,0.00018339,30]
[392180821,1761241158059,5000.0,0.00021203,2]
[392180822,1761241166381,1877.06,0.00021203,2]
[392180823,1761241166403,2871.98957718,0.00021203,2]
[392180824,1761241181774,5000.0,0.00021203,2]
[392180825,1761241204599,2128.02042282,0.00021203,2]
[392180826,1761241204624,2871.97957718,0.00021203,2]
[392180827,1761241223866,150.0,0.00019241,2]
[392180828,1761241224283,295.07,0.00020157,2]
[392180829,1761241224742,442.61,0.00021073,2]
[392180830,1761241227394,5000.0,0.00021203,2]
[392180831,1761241228099,150.0,0.00012807,30]
[392180832,1761241228504,150.0,0.00013416,30]
[392180833,1761241228906,189.69,0.00014026,30]
[392180834,1761241229163,159.0,8.3e-07,2]
[392180835,1761241229332,252.92,0.00014636,30]
[392180836,1761241229827,316.15,0.00015246,30]
[392180837,1761241230128,379.38,0.00015856,30]
[392180838,1761241230220,159.0,8.3e-07,2]
[392180839,1761241230626,442.61,0.00016466,30]
[392180840,1761241231052,505.84,0.00017075,30]
[392180841,1761241231889,159.0,8.3e-07,2]
[392180842,1761241232121,569.07,0.00017685,30]
[392180843,1761241232365,519.54287949,0.00018295,30]
[392180844,1761241232615,159.0,8.3e-07,2]
[392180845,1761241233351,159.0,8.3e-07,2]
[392180846,1761241234576,159.0,8.3e-07,2]
[392180847,1761241243708,163.15440764,0.00021284,2]
[392180848,1761241249672,5000.0,0.00021296,2]
[392180849,1761241266514,196.0,0.00016,2]
[392180850,1761241266895,196.0,0.0001705,2]
[392180851,1761241267067,376.67198983,0.000181,2]
[392180852,1761241273039,3750.18360253,0.00021296,2]
[392180853,1761241280859,5000.0,0.00021203,2]
[392180854,1761241292147,659.92545446,0.00021097,6]
[392180855,1761241297752,-1249.81639747,0.00021296,2]
[392180856,1761241300074,150.0,0.00019243,2]
[392180857,1761241300493,281.48,0.0002016,2]
[392180858,1761241300890,422.22,0.00021076,2]
[392180859,1761241303527,5000.0,0.00021296,2]
[392180860,1761241304113,150.0,0.00012896,30]
[392180861,1761241304525,150.0,0.0001351,30]
[392180862,1761241304917,180.95,0.00014124,30]
[392180863,1761241305432,241.27,0.00014738,30]
[392180864,1761241305726,301.59,0.00015352,30]
[392180865,1761241306110,361.9,0.00015966,30]
[392180866,1761241306561,260.96720506,0.0001658,30]
[392180867,1761241306587,161.25279494,0.0001658,30]
[392180868,1761241306968,482.54,0.00017194,30]
[392180869,1761241307365,542.85,0.00017808,30]
[392180870,1761241307757,474.87,0.00018422,30]
[392180872,1761241312662,-333.80383748,0.00021296,2]
[392180873,1761241319380,5000.0,0.00021296,2]
[392180874,1761241319868,1000.0,0.00021,5]
[392180875,1761241327676,3332.40232504,0.00021296,2]
[392180876,1761241327700,1667.59767496,0.00021296,2]
[392180877,1761241327772,-500.0,0.000213,2]
[392180878,1761241332853,775.0,0.00021,5]
[392180879,1761241342800,-954.0578191,0.00021384,2]
[392180880,1761241343560,5000.0,0.000213,2]
[392180881,1761241351386,3091.8943618,0.00021384,2]
[392180882,1761241351409,1189.40761729,0.00021384,2]
[392180884,1761241357856,-163.15440763,0.00021407,2]
[392180885,1761241366571,5000.0,0.00021407,2]
[392180886,1761241375463,150.0,0.00019278,2]
[392180887,1761241375870,187.0,0.00020196,2]
[392180888,1761241376267,280.49,0.00021114,2]
[392180889,1761241379757,150.0,0.00012797,30]
[392180890,1761241380161,150.0,0.00013407,30]
[392180891,1761241380585,150.0,0.00014016,30]
[392180892,1761241380984,160.28,0.00014625,30]
[392180893,1761241381404,200.35,0.00015235,30]
[392180894,1761241381555,165.20105247,0.00021407,2]
[392180895,1761241381807,240.42,0.00015844,30]
[392180896,1761241382214,280.49,0.00016454,30]
[392180897,1761241382614,320.56,0.00017063,30]
[392180898,1761241383024,360.63,0.00017672,30]
[392180899,1761241386228,368.17587381,0.00016,2]
[392180900,1761241388807,5000.0,0.00021507,2]
[392180901,1761241397290,988.96772191,0.00021507,2]
[392180902,1761241405474,2400.0,0.00021507,2]
[392180903,1761241412054,-2793.12256921,0.00021507,2]
[392180904,1761241412081,-1584.18990349,0.00021556,2]
[392180905,1761241413812,1245.3850546,0.00021507,2]
[392180906,1761241413845,25.88624001,0.00021507,2]
[392180907,1761241421817,295.56531714,0.00021556,2]
[392180908,1761241427117,-1584.18990349,0.00021654,2]
[392180909,1761241442226,-1200.0,0.00021823,2]
[392180911,1761241450872,150.0,0.00019263,2]
[392180912,1761241451317,161.85,0.00020181,2]
[392180913,1761241451710,242.77,0.00021098,2]
[392180914,1761241452598,169.341647,0.00010483,2]
[392180915,1761241455110,150.0,0.00012756,30]
[392180916,1761241455512,150.0,0.00013363,30]
[392180917,1761241455919,150.0,0.00013971,30]
[392180918,1761241456326,150.0,0.00014578,30]
[392180919,1761241456726,173.41,0.00015186,30]
[392180920,1761241457134,208.09,0.00015793,30]
[392180921,1761241457270,-1200.0,0.00021824,2]
[392180922,1761241457524,242.77,0.000164,30]
[392180923,1761241457987,277.45,0.00017008,30]
[392180924,1761241458384,312.14,0.00017615,30]
[392180926,1761241470977,847.283734,0.00013699,2]
[392180927,1761241471202,847.283734,0.00020187,2]
[392180928,1761241472302,-4049.31271244,0.00021825,2]
[392180929,1761241478610,1883.74325362,0.00021693,2]
[392180930,1761241487306,-300.0,0.00021891,2]
[392180931,1761241502798,-327.12776073,0.00021892,2]
[392180932,1761241508953,5000.0,0.00021892,2]
[392180933,1761241517344,4345.75447854,0.00021892,2]
[392180934,1761241517366,654.24552146,0.00021892,2]
[392180935,1761241517397,-369.07903264,0.00021915,2]
[392180936,1761241525373,5000.0,0.00021915,2]
[392180937,1761241526107,150.0,0.00019258,2]
[392180938,1761241526594,150.0,0.00020175,2]
[392180939,1761241527151,165.39,0.00021092,2]
[392180940,1761241530358,150.0,0.00013001,30]
[392180941,1761241530857,150.0,0.0001362,30]
[392180942,1761241531239,150.0,0.0001424,30]
[392180943,1761241531648,150.0,0.00014859,30]
[392180944,1761241532051,150.0,0.00015478,30]
[392180945,1761241532443,150.0,0.00016097,30]
[392180946,1761241532594,-1439.995333,0.00021918,2]
[392180947,1761241532847,165.39,0.00016716,30]
[392180948,1761241533711,5000.0,0.00021915,2]
[392180950,1761241548515,-1883.74325362,0.00021971,2]
[392180951,1761241565640,-300.0,0.00021976,2]
[392180952,1761241594083,-5598.4313211,0.00021977,2]
[392180953,1761241595986,-324.97131121,0.00021977,2]
[392180954,1761241596015,-151.0,0.00021977,2]
[392180955,1761241596045,-204.22950362,0.00021977,2]
[392180956,1761241596075,-151.0,0.00021977,2]
[392180957,1761241596104,-151.0,0.00021977,2]
[392180958,1761241596133,-151.0,0.00021977,2]
[392180959,1761241596164,-151.0,0.00021977,2]
[392180960,1761241596192,-151.0,0.00021977,2]
[392180961,1761241596220,-151.0,0.00021977,2]
[392180962,1761241596253,-151.0,0.00021977,2]
[392180963,1761241596283,-151.7608067,0.00021977,2]
[392180964,1761241596312,-151.0,0.00021977,2]
[392180965,1761241596340,-151.0,0.00021977,2]
[392180966,1761241596368,-210.55290954,0.00021977,2]
[392180967,1761241596394,-299.77827851,0.00021977,2]
[392180968,1761241596424,-1000.0,0.00021977,2]
[392180969,1761241596452,-1000.0,0.00021977,2]
[392180970,1761241596985,-888.15731838,0.00021977,2]
[392180971,1761241597017,-250.0,0.00021977,2]
[392180972,1761241597045,-250.0,0.00021977,2]
[392180973,1761241597076,-250.0,0.00021977,2]
[392180974,1761241597103,-250.0,0.00021977,2]
[392180975,1761241597131,-320.66427885,0.00021977,2]
[392180976,1761241597159,-1200.0,0.00021979,2]
[392180977,1761241597188,-844.28,0.0002198,3]
[392180978,1761241597214,-422.14,0.0002198,3]
[392180979,1761241597245,-211.07,0.0002198,3]
[392180980,1761241597499,-633.23,0.0002198,3]
[392180981,1761241597528,-469.15,0.0002198,10]
[392180982,1761241597557,-500.0,0.00021987,2]
[392180983,1761241597584,-500.0,0.00021987,2]
[392180984,1761241597612,-500.0,0.00021987,2]
[392180985,1761241597639,-500.0,0.00021987,2]
[392180986,1761241597667,-403.08981686,0.00021987,2]
[392180987,1761241597698,-500.0,0.00021987,2]
[392180988,1761241597727,-500.0,0.00021987,2]
[392180989,1761241597757,-489.07036628,0.00021987,2]
[392180990,1761241598133,-10.92963372,0.00021987,2]
[392180991,1761241598162,-500.0,0.00021987,2]
[392180992,1761241598192,-500.0,0.00021987,2]
[392180993,1761241598225,-500.0,0.00021987,2]
[392180994,1761241598259,-500.0,0.00021987,2]
[392180995,1761241598291,-500.0,0.00021987,2]
[392180996,1761241598322,-500.0,0.00021987,2]
[392180997,1761241598354,-500.0,0.00021987,2]
[392180998,1761241598384,-500.0,0.00021987,2]
[392180999,1761241598416,-500.0,0.00021987,2]
[392181000,1761241598444,-416.13420126,0.00021987,2]
[392181001,1761241598491,-500.0,0.00021987,2]
[392181002,1761241598520,-500.0,0.00021987,2]
[392181003,1761241598550,-500.0,0.00021987,2]
[392181004,1761241598578,-500.0,0.00021987,2]
[392181005,1761241598607,-500.0,0.00021987,2]
[392181006,1761241598637,-500.0,0.00021987,2]
[392181007,1761241598667,-500.0,0.00021987,2]
[392181008,1761241598696,-500.0,0.00021987,2]
[392181009,1761241598726,-500.0,0.00021987,2]
[392181010,1761241598767,-372.16481839,0.00021987,2]
[392181011,1761241598821,-500.0,0.00021987,2]
[392181012,1761241598862,-200.94754802,0.00021987,2]
[392181013,1761241598902,-203.70327555,0.00021987,2]
[392181014,1761241598944,-500.0,0.00021987,2]
[392181015,1761241598987,-500.0,0.00021987,2]
[392181016,1761241599029,-500.0,0.00021987,2]
[392181017,1761241599068,-500.0,0.00021987,2]
[392181018,1761241599109,-542.1494886,0.00021987,2]
[392181019,1761241599152,-500.0,0.00021987,2]
[392181020,1761241599190,-500.0,0.00021987,2]
[392181021,1761241599226,-500.0,0.00021987,2]
[392181022,1761241599478,-500.0,0.00021987,2]
[392181023,1761241599513,-500.0,0.00021987,2]
[392181024,1761241599547,-500.0,0.00021987,2]
[392181025,1761241599581,-500.0,0.00021987,2]
[392181026,1761241599617,-500.0,0.00021987,2]
[392181027,1761241599780,-500.0,0.00021987,2]
[392181028,1761241599816,-500.0,0.00021987,2]
[392181029,1761241599847,-500.0,0.00021987,2]
[392181030,1761241599879,-158.33650595,0.00021987,2]
[392181031,1761241599910,-500.0,0.00021987,2]
[392181032,1761241599941,-183.3369881,0.00021987,2]
[392181033,1761241600183,-316.6630119,0.00021987,2]
[392181034,1761241600214,-500.0,0.00021987,2]
[392181035,1761241600248,-500.0,0.00021987,2]
[392181036,1761241600279,-500.0,0.00021988,2]
[392181037,1761241600308,-167.0232308,0.00021988,2]
[392181038,1761241600341,-222.54414156,0.00021989,2]
[392181039,1761241600371,-387.69648608,0.00021989,2]
[392181040,1761241600399,-206.92242666,0.00021989,2]
[392181041,1761241600426,-500.0,0.00021989,2]
[392181042,1761241604513,150.0,0.00021238,2]
[392181043,1761241605915,150.0,0.00015142,30]
[392181044,1761241606322,150.0,0.00015863,30]
[392181045,1761241606696,539.49,0.0002198,10]
[392181046,1761241606728,162.09274955,0.00021887,2]
[392181047,1761241606758,150.0,0.00016584,30]
[392181048,1761241609511,1410.06740451,0.00021895,2]
[392181049,1761241611785,162.09274954,0.00021895,2]
[392181050,1761241612105,244.8559195,0.00021987,2]
[392181051,1761241612145,279.7125829,0.00021987,2]
[392181052,1761241612168,220.2874171,0.00021987,2]
[392181053,1761241612206,500.0,0.00021987,2]
[392181054,1761241612263,500.0,0.00021987,2]
[392181055,1761241612310,500.0,0.00021987,2]
[392181056,1761241612357,605.37062803,0.00021987,2]
[392181057,1761241615277,150.0,0.00029,120]
[392181058,1761241616801,-5000.0,0.0002199,2]
[392181059,1761241618584,-500.0,0.00021987,2]
[392181060,1761241618612,-500.0,0.00021987,2]
[392181061,1761241618641,-500.0,0.00021987,2]
[392181062,1761241619895,-449.58,0.0002198,10]
[392181063,1761241619923,-500.0,0.00021987,2]
[392181064,1761241619954,-500.0,0.00021987,2]
[392181065,1761241619982,-500.0,0.00021987,2]
[392181066,1761241620010,-500.0,0.00021987,2]
[392181067,1761241620041,-500.0,0.00021987,2]
[392181068,1761241620072,-500.0,0.00021987,2]
[392181069,1761241620103,-500.0,0.00021987,2]
[392181070,1761241620131,-500.0,0.00021987,2]
[392181071,1761241620159,-500.0,0.00021987,2]
[392181072,1761241620390,-500.0,0.00021987,2]
[392181073,1761241620421,-500.0,0.00021987,2]
[392181074,1761241620449,-500.0,0.00021987,2]
[392181075,1761241620478,-189.81516733,0.00021987,2]
[392181076,1761241620505,-500.0,0.00021989,2]
[392181077,1761241620532,-500.0,0.00021989,2]
[392181078,1761241620707,-500.0,0.00021989,2]
[392181079,1761241620884,-500.0,0.00021989,2]
[392181080,1761241621054,-500.0,0.00021989,2]
[392181081,1761241624414,-300.0,0.00021989,2]
[392181082,1761241624906,-7753.24011238,0.0002199,2]
[392181083,1761241626179,-10000.01,0.0002199,2]
[392181084,1761241626334,-10000.01,0.0002199,2]
[392181085,1761241626447,-10000.01,0.0002199,2]
[392181086,1761241626634,-10000.01,0.0002199,2]
[392181087,1761241626756,-10000.01,0.0002199,2]
[392181088,1761241626883,-10000.01,0.0002199,2]
[392181089,1761241627083,-10000.01,0.0002199,2]
[392181090,1761241627193,-10000.01,0.0002199,2]
[392181091,1761241629067,-10000.01,0.0002199,2]
[392181092,1761241633710,193.29907508,0.00029,120]
[392181097,1761241644058,-246.05268842,0.00021895,2]
[392181100,1761241652014,2979.95092275,0.00021895,2]
[392181102,1761241659157,-1200.0,0.00021989,2]
[392181103,1761241659185,-1000.0,0.0002199,2]
[392181104,1761241659214,-1000.0,0.0002199,2]
[392181105,1761241659242,-750.07998204,0.0002199,2]
[392181106,1761241659407,-2246.66988762,0.0002199,2]
[392181107,1761241659435,-506.67022476,0.00021995,2]
[392181108,1761241659596,-3613.22888841,0.00021995,2]
[392181109,1761241659643,-880.10088683,0.00021995,2]
[392181110,1761241659670,-1439.995333,0.00022154,2]
[392181111,1761241659701,-150.0,0.00022162,2]
[392181112,1761241659730,-168.0,0.00022193,2]
[392181113,1761241659758,-168.0,0.00022211,2]
[392181114,1761241659785,-910.97227382,0.00022274,2]
[392181115,1761241659812,-246.05268841,0.00022295,2]
[392181116,1761241659842,-168.0,0.0002234,2]
[392181117,1761241659870,-297.77230288,0.00022391,2]
[392181118,1761241659974,-1142.22303012,0.00022391,2]
[392181119,1761241660004,-168.0,0.00022463,2]
[392181120,1761241660033,-168.0,0.00022551,2]
[392181121,1761241660060,-544.83071569,0.00022622,2]
[392181122,1761241660087,-500.0,0.00022627,2]
[392181123,1761241660113,-500.0,0.00022627,2]
[392181124,1761241660140,-1439.995333,0.00022627,2]
[392181125,1761241660167,-517.14625038,0.00022661,2]
[392181126,1761241660267,-39.61934162,0.00022661,2]
[392181127,1761241660295,-168.0,0.00022666,2]
[392181128,1761241660321,-1828.92,0.00022672,2]
[392181129,1761241660349,-2748.56513965,0.00022673,2]
[392181130,1761241660503,-429.80103746,0.00022673,2]
[392181131,1761241660530,-1688.55,0.00022689,3]
[392181132,1761241660557,-246.05268841,0.00022695,2]
[392181133,1761241660586,-1017.48,0.00022698,3]
[392181134,1761241660616,-508.74,0.00022698,3]
[392181135,1761241660643,-254.37,0.00022698,3]
[392181136,1761241660765,-4069.9,0.00022699,3]
[392181137,1761241660912,-2034.95,0.00022699,3]
[392181138,1761241661128,-1295.03326905,0.00022709,2]
[392181139,1761241661143,-1860.21,0.00022709,2]
[392181140,1761241661175,-2034.95,0.00022709,2]
[392181141,1761241661190,-5930.11,0.00022709,2]
[392181142,1761241661217,-10000.01,0.00022709,2]
[392181143,1761241661238,-1606.16768833,0.00022709,2]
[392181144,1761241661248,-2193.13399758,0.00022725,2]
[392181145,1761241661258,-150.43,0.00022735,2]
[392181146,1761241661270,-500.0,0.00022735,2]
[392181147,1761241661279,-200.67465276,0.00022772,2]
[392181148,1761241661289,-500.0,0.00022773,2]
[392181149,1761241661298,-500.83366451,0.00022773,2]
[392181150,1761241661309,-500.0,0.00022773,2]
[392181151,1761241661319,-500.0,0.00022773,2]
[392181152,1761241661409,-500.0,0.00022773,2]
[392181153,1761241661422,-500.0,0.00022773,2]
[392181154,1761241661432,-500.0,0.00022773,2]
[392181155,1761241661441,-500.0,0.00022773,2]
[392181156,1761241661451,-500.0,0.00022773,2]
[392181157,1761241661460,-500.0,0.00022773,2]
[392181158,1761241661470,-163.82552232,0.00022773,2]
[392181159,1761241661479,-184.9444745,0.00022773,2]
[392181160,1761241665016,-315.0555255,0.00022773,2]
[392181161,1761241665043,-500.0,0.00022773,2]
[392181162,1761241665070,-500.0,0.00022773,2]
[392181163,1761241665096,-500.0,0.00022773,2]
[392181164,1761241665123,-500.0,0.00022773,2]
[392181165,1761241665149,-500.0,0.00022773,2]
[392181166,1761241665177,-500.0,0.00022773,2]
[392181167,1761241665204,-500.0,0.00022773,2]
[392181168,1761241665230,-500.0,0.00022773,2]
[392181169,1761241665256,-500.0,0.00022773,2]
[392181170,1761241665384,-500.0,0.00022773,2]
[392181171,1761241665411,-500.0,0.00022773,2]
[392181172,1761241665437,-500.0,0.00022773,2]
[392181173,1761241665463,-500.0,0.00022773,2]
[392181174,1761241665489,-418.17723117,0.00022773,2]
[392181175,1761241665516,-500.0,0.00022773,2]
[392181176,1761241665542,-500.0,0.00022773,2]
[392181177,1761241665568,-500.0,0.00022773,2]
[392181178,1761241665595,-500.0,0.00022773,2]
[392181179,1761241665714,-500.0,0.00022773,2]
[392181180,1761241665846,-500.0,0.00022773,2]
[392181181,1761241665875,-500.0,0.00022773,2]
[392181182,1761241665903,-500.0,0.00022773,2]
[392181183,1761241665931,-502.63250073,0.00022773,2]
[392181184,1761241665959,-500.0,0.00022773,2]
[392181185,1761241665987,-500.0,0.00022773,2]
[392181186,1761241666017,-500.0,0.00022773,2]
[392181187,1761241666045,-500.0,0.00022773,2]
[392181188,1761241666072,-354.79328094,0.00022773,2]
[392181189,1761241666098,-516.48762778,0.00022773,2]
[392181190,1761241666603,-67.97764178,0.00022773,2]
[392181191,1761241666621,-432.02235822,0.00022773,2]
[392181192,1761241666630,-84.46526956,0.00022773,2]
[392181193,1761241666650,-252.1831811,0.00022773,2]
[392181194,1761241679169,150.0,0.00015038,30]
[392181195,1761241679436,-150.0,0.00019401,2]
[392181196,1761241679461,-91.85329877,0.00020325,2]
[392181197,1761241679576,150.0,0.00015754,30]
[392181198,1761241679980,150.0,0.0001647,30]
[392181199,1761241680422,150.0,0.00017186,30]
[392181200,1761241680824,150.0,0.00017902,30]
[392181201,1761241681308,174.0,0.00018618,30]
[392181202,1761241681736,202.99,0.00019334,30]
[392181203,1761241682149,231.99,0.0002005,30]
[392181204,1761241689321,-58.14670123,0.00020325,2]
[392181205,1761241689356,-202.99,0.00021249,2]
[392181206,1761241689383,-500.0,0.00021988,2]
[392181207,1761241689411,-500.0,0.00021988,2]
[392181208,1761241689444,-300.0,0.00021988,2]
[392181209,1761241689473,-500.0,0.00021989,2]
[392181210,1761241689500,-500.0,0.00021989,2]
[392181211,1761241689526,-500.0,0.00021989,2]
[392181212,1761241689553,-500.0,0.00021989,2]
[392181213,1761241689579,-500.0,0.00021989,2]
[392181214,1761241689609,-270.66,0.00022172,2]
[392181215,1761241689636,-570.75655906,0.00022545,7]
[392181216,1761241689704,-194.90347942,0.00022545,7]
[392181217,1761241689732,-500.0,0.00022672,2]
[392181218,1761241689759,-500.0,0.00022772,2]
[392181219,1761241689786,-163.35154934,0.00022773,2]
[392181220,1761241689812,-500.0,0.00022773,2]
[392181221,1761241689839,-500.0,0.00022773,2]
[392181222,1761241689866,-500.0,0.00022773,2]
[392181223,1761241689894,-500.0,0.00022773,2]
[392181224,1761241689921,-500.0,0.00022773,2]
[392181225,1761241689948,-500.0,0.00022773,2]
[392181226,1761241689975,-500.0,0.00022773,2]
[392181227,1761241690072,-500.0,0.00022773,2]
[392181228,1761241690101,-500.0,0.00022773,2]